[Event "Titled Tuesday Blitz March 07 Early 2023"]
[White "Boyer, Mahel"]
[Black "Derjabin, Ilja"]
[WhiteFideId "45102422"]
[BlackFideId "14104768"]
[WhiteElo "2439"]
[BlackElo "2309"]
[Result "1-0"]
[Round "11"]
[TimeControl "180+2"]
[Date "2023.03.07"]
[WhiteClock "0:00:06"]
[BlackClock "0:00:04"]

1. e4 {[%clk 0:02:53]}  e6 {[%clk 0:02:59]} 2. d4 {[%clk 0:02:53]}  d5 {[%clk 0:03:00]} 3. Bd3 {[%clk 0:02:52]}  c5 {[%clk 0:02:59]} 4. exd5 {[%clk 0:02:36]}  exd5 {[%clk 0:03:00]} 5. Qe2+ {[%clk 0:02:31]}  Be7 {[%clk 0:02:58]} 6. dxc5 {[%clk 0:02:30]}  Nf6 {[%clk 0:02:57]} 7. Nd2 {[%clk 0:02:11]}  O-O {[%clk 0:02:55]} 8. Nb3 {[%clk 0:02:11]}  Re8 {[%clk 0:02:53]} 9. Be3 {[%clk 0:02:11]}  Nc6 {[%clk 0:02:49]} 10. Nf3 {[%clk 0:02:11]}  a5 {[%clk 0:02:31]} 11. a4 {[%clk 0:01:46]}  Bg4 {[%clk 0:02:25]} 12. O-O-O {[%clk 0:01:45]}  Qc7 {[%clk 0:01:41]} 13. h3 {[%clk 0:01:43]}  Bxf3 {[%clk 0:01:36]} 14. Qxf3 {[%clk 0:01:44]}  Ne5 {[%clk 0:01:37]} 15. Qf4 {[%clk 0:01:32]}  Nxd3+ {[%clk 0:01:36]} 16. Rxd3 {[%clk 0:01:29]}  Qc6 {[%clk 0:01:35]} 17. Bd4 {[%clk 0:01:25]}  Ne4 {[%clk 0:01:32]} 18. Kb1 {[%clk 0:01:21]}  Qxa4 {[%clk 0:01:27]} 19. f3 {[%clk 0:01:12]}  Nxc5 {[%clk 0:01:04]} 20. Qg4 {[%clk 0:00:28]}  Ne6 {[%clk 0:01:00]} 21. Re1 {[%clk 0:00:27]}  Nxd4 {[%clk 0:00:50]} 22. Qxd4 {[%clk 0:00:23]}  Qxd4 {[%clk 0:00:40]} 23. Rxd4 {[%clk 0:00:24]}  a4 {[%clk 0:00:38]} 24. Nc1 {[%clk 0:00:22]}  Bf6 {[%clk 0:00:34]} 25. Rxe8+ {[%clk 0:00:21]}  Rxe8 {[%clk 0:00:35]} 26. Rxd5 {[%clk 0:00:19]}  h6 {[%clk 0:00:35]} 27. Nd3 {[%clk 0:00:18]}  Re2 {[%clk 0:00:34]} 28. Nf4 {[%clk 0:00:16]}  Re1+ {[%clk 0:00:32]} 29. Ka2 {[%clk 0:00:16]}  Bg5 {[%clk 0:00:29]} 30. Rd4 {[%clk 0:00:13]}  b5 {[%clk 0:00:28]} 31. Nd3 {[%clk 0:00:11]}  Re2 {[%clk 0:00:25]} 32. g4 {[%clk 0:00:03]}  Rxc2 {[%clk 0:00:23]} 33. Rb4 {[%clk 0:00:02]}  Rd2 {[%clk 0:00:22]} 34. Ne5 {[%clk 0:00:03]}  Bf6 {[%clk 0:00:21]} 35. Rxb5 {[%clk 0:00:02]}  Kh7 {[%clk 0:00:11]} 36. Nxf7 {[%clk 0:00:02]}  a3 {[%clk 0:00:07]} 37. Kxa3 {[%clk 0:00:02]}  Rd3+ {[%clk 0:00:07]} 38. Rb3 {[%clk 0:00:02]}  Be7+ {[%clk 0:00:07]} 39. Ka2 {[%clk 0:00:02]}  Rd5 {[%clk 0:00:04]} 40. f4 {[%clk 0:00:02]}  Ra5+ {[%clk 0:00:04]} 41. Kb1 {[%clk 0:00:02]}  h5 {[%clk 0:00:05]} 42. Ne5 {[%clk 0:00:02]}  Bf6 {[%clk 0:00:05]} 43. Nf3 {[%clk 0:00:02]}  h4 {[%clk 0:00:05]} 44. g5 {[%clk 0:00:02]}  Be7 {[%clk 0:00:05]} 45. Nxh4 {[%clk 0:00:03]}  Ra4 {[%clk 0:00:05]} 46. Rf3 {[%clk 0:00:03]}  Bd6 {[%clk 0:00:04]} 47. g6+ {[%clk 0:00:03]}  Kh6 {[%clk 0:00:04]} 48. Nf5+ {[%clk 0:00:04]}  Kxg6 {[%clk 0:00:05]} 49. Nxd6 {[%clk 0:00:05]}  Rd4 {[%clk 0:00:05]} 50. Rg3+ {[%clk 0:00:05]}  Kf6 {[%clk 0:00:05]} 51. Ne8+ {[%clk 0:00:04]}  Kf7 {[%clk 0:00:04]} 52. Nxg7 {[%clk 0:00:05]}  Rxf4 {[%clk 0:00:04]} 53. Nh5 {[%clk 0:00:05]}  Rf2 {[%clk 0:00:04]} 54. Rg4 {[%clk 0:00:04]}  Ke6 {[%clk 0:00:04]} 55. Ng3 {[%clk 0:00:05]}  Rg2 {[%clk 0:00:04]} 56. Ka2 {[%clk 0:00:04]}  Rh2 {[%clk 0:00:04]} 57. h4 {[%clk 0:00:05]}  Ke5 {[%clk 0:00:04]} 58. Ka3 {[%clk 0:00:05]}  Rh3 {[%clk 0:00:04]} 59. Ka4 {[%clk 0:00:05]}  Kd5 {[%clk 0:00:04]} 60. b4 {[%clk 0:00:06]}  Kc6 {[%clk 0:00:05]} 61. Ka5 {[%clk 0:00:05]}  Kb7 {[%clk 0:00:04]} 62. Kb5 {[%clk 0:00:05]}  Rh1 {[%clk 0:00:04]} 63. Rg7+ {[%clk 0:00:05]}  Kb8 {[%clk 0:00:04]} 64. h5 {[%clk 0:00:06]} 1-0


[Site "https://www.chess.com"]

[Event "Titled Tuesday Blitz March 07 Early 2023"]
[White "Zarnicki, Pablo"]
[Black "Csonka, Balazs"]
[WhiteFideId "100137"]
[BlackFideId "742910"]
[WhiteElo "2468"]
[BlackElo "2404"]
[Result "0-1"]
[Round "11"]
[TimeControl "180+2"]
[Date "2023.03.07"]
[WhiteClock "0:00:08"]
[BlackClock "0:00:04"]

1. e4 {[%clk 0:03:00]}  e6 {[%clk 0:02:57]} 2. d3 {[%clk 0:02:59]}  c5 {[%clk 0:02:55]} 3. Nf3 {[%clk 0:02:59]}  Nc6 {[%clk 0:02:55]} 4. g3 {[%clk 0:02:59]}  d5 {[%clk 0:02:54]} 5. Qe2 {[%clk 0:02:58]}  Nge7 {[%clk 0:02:53]} 6. Bg2 {[%clk 0:02:58]}  g6 {[%clk 0:02:53]} 7. O-O {[%clk 0:02:58]}  Bg7 {[%clk 0:02:53]} 8. e5 {[%clk 0:02:57]}  O-O {[%clk 0:02:51]} 9. Re1 {[%clk 0:02:57]}  b5 {[%clk 0:02:49]} 10. h4 {[%clk 0:02:55]}  h6 {[%clk 0:02:41]} 11. Bf4 {[%clk 0:02:54]}  b4 {[%clk 0:02:38]} 12. Nbd2 {[%clk 0:02:54]}  a5 {[%clk 0:02:37]} 13. Nf1 {[%clk 0:02:54]}  Ba6 {[%clk 0:02:30]} 14. Qd2 {[%clk 0:02:53]}  Kh7 {[%clk 0:02:17]} 15. N1h2 {[%clk 0:02:53]}  Rc8 {[%clk 0:01:58]} 16. Bh3 {[%clk 0:02:31]}  c4 {[%clk 0:01:25]} 17. d4 {[%clk 0:02:30]}  c3 {[%clk 0:01:25]} 18. bxc3 {[%clk 0:02:30]}  bxc3 {[%clk 0:01:26]} 19. Qc1 {[%clk 0:02:22]}  Nf5 {[%clk 0:01:23]} 20. Qd1 {[%clk 0:01:57]}  Rb8 {[%clk 0:01:04]} 21. g4 {[%clk 0:01:49]}  Nxh4 {[%clk 0:00:58]} 22. Bg3 {[%clk 0:01:45]}  Nxf3+ {[%clk 0:00:55]} 23. Nxf3 {[%clk 0:01:46]}  Qc7 {[%clk 0:00:44]} 24. Kg2 {[%clk 0:01:42]}  Rb2 {[%clk 0:00:43]} 25. Rh1 {[%clk 0:01:41]}  Nb4 {[%clk 0:00:40]} 26. Ne1 {[%clk 0:01:34]}  Qc4 {[%clk 0:00:33]} 27. a3 {[%clk 0:01:31]}  Nc6 {[%clk 0:00:34]} 28. Nf3 {[%clk 0:01:22]}  Qe2 {[%clk 0:00:32]} 29. Qg1 {[%clk 0:01:12]}  Rxc2 {[%clk 0:00:27]} 30. g5 {[%clk 0:01:12]}  h5 {[%clk 0:00:24]} 31. Bg4 {[%clk 0:01:12]}  Kg8 {[%clk 0:00:21]} 32. Re1 {[%clk 0:00:55]}  hxg4 {[%clk 0:00:20]} 33. Rxe2 {[%clk 0:00:52]}  gxf3+ {[%clk 0:00:20]} 34. Kxf3 {[%clk 0:00:49]}  Bxe2+ {[%clk 0:00:20]} 35. Ke3 {[%clk 0:00:47]}  Rb8 {[%clk 0:00:16]} 36. Qh2 {[%clk 0:00:39]}  Bh5 {[%clk 0:00:15]} 37. Qg1 {[%clk 0:00:33]}  Rbb2 {[%clk 0:00:15]} 38. Kf4 {[%clk 0:00:28]}  Nxd4 {[%clk 0:00:13]} 39. Qe1 {[%clk 0:00:23]}  Ne2+ {[%clk 0:00:12]} 40. Ke3 {[%clk 0:00:21]}  d4+ {[%clk 0:00:13]} 41. Kd3 {[%clk 0:00:21]}  Rd2+ {[%clk 0:00:12]} 42. Kc4 {[%clk 0:00:22]}  Nxg3 {[%clk 0:00:12]} 43. fxg3 {[%clk 0:00:20]}  Be2+ {[%clk 0:00:08]} 44. Kc5 {[%clk 0:00:20]}  d3 {[%clk 0:00:05]} 45. Rh4 {[%clk 0:00:19]}  Bf8+ {[%clk 0:00:04]} 46. Kc6 {[%clk 0:00:19]}  Rb8 {[%clk 0:00:04]} 47. Kc7 {[%clk 0:00:18]}  Rdb2 {[%clk 0:00:04]} 48. Qh1 {[%clk 0:00:17]}  R2b7+ {[%clk 0:00:04]} 49. Kc6 {[%clk 0:00:18]}  Bg7 {[%clk 0:00:03]} 50. Rd4 {[%clk 0:00:15]}  c2 {[%clk 0:00:03]} 51. Qc1 {[%clk 0:00:12]}  Rb1 {[%clk 0:00:03]} 52. Kc7 {[%clk 0:00:08]}  Rc8+ {[%clk 0:00:02]} 53. Kxc8 {[%clk 0:00:06]}  Rxc1 {[%clk 0:00:03]} 54. Rd8+ {[%clk 0:00:07]}  Bf8 {[%clk 0:00:02]} 55. Kb7 {[%clk 0:00:08]}  Rb1+ {[%clk 0:00:03]} 56. Ka6 {[%clk 0:00:09]}  c1=Q {[%clk 0:00:03]} 57. a4 {[%clk 0:00:07]}  Qc6+ {[%clk 0:00:04]} 58. Ka7 {[%clk 0:00:08]}  Qb7# {[%clk 0:00:04]} 0-1


[Site "https://www.chess.com"]

[Event "Titled Tuesday Blitz March 07 Early 2023"]
[White "Preotu, Razvan"]
[Black "Rottenwohrer Suarez, Juan"]
[WhiteFideId "2613280"]
[BlackFideId "32068182"]
[WhiteElo "2407"]
[BlackElo "2174"]
[Result "1-0"]
[Round "11"]
[TimeControl "180+2"]
[Date "2023.03.07"]
[WhiteClock "0:00:24"]
[BlackClock "0:00:01"]

1. e4 {[%clk 0:03:00]}  c5 {[%clk 0:02:59]} 2. Nf3 {[%clk 0:02:54]}  g6 {[%clk 0:03:00]} 3. d4 {[%clk 0:02:54]}  cxd4 {[%clk 0:03:00]} 4. Nxd4 {[%clk 0:02:55]}  Nc6 {[%clk 0:03:01]} 5. c4 {[%clk 0:02:55]}  Nf6 {[%clk 0:03:01]} 6. Nc3 {[%clk 0:02:54]}  d6 {[%clk 0:03:02]} 7. Be2 {[%clk 0:02:52]}  Nxd4 {[%clk 0:03:02]} 8. Qxd4 {[%clk 0:02:52]}  Bg7 {[%clk 0:03:03]} 9. O-O {[%clk 0:02:50]}  O-O {[%clk 0:03:03]} 10. Qd3 {[%clk 0:02:51]}  Be6 {[%clk 0:02:52]} 11. Be3 {[%clk 0:02:48]}  Nd7 {[%clk 0:02:37]} 12. b3 {[%clk 0:02:46]}  Nc5 {[%clk 0:02:34]} 13. Qd2 {[%clk 0:02:43]}  Qa5 {[%clk 0:02:13]} 14. Rac1 {[%clk 0:01:27]}  Bxc3 {[%clk 0:02:10]} 15. Qxc3 {[%clk 0:01:28]}  Qxc3 {[%clk 0:02:09]} 16. Rxc3 {[%clk 0:01:29]}  Nxe4 {[%clk 0:02:10]} 17. Rcc1 {[%clk 0:01:30]}  a5 {[%clk 0:01:26]} 18. Bf3 {[%clk 0:01:29]}  f5 {[%clk 0:01:25]} 19. Rfe1 {[%clk 0:01:27]}  Rfc8 {[%clk 0:01:18]} 20. Bxe4 {[%clk 0:01:18]}  fxe4 {[%clk 0:01:17]} 21. Bg5 {[%clk 0:01:19]}  d5 {[%clk 0:01:11]} 22. cxd5 {[%clk 0:01:16]}  Bxd5 {[%clk 0:01:04]} 23. Bxe7 {[%clk 0:01:16]}  a4 {[%clk 0:00:50]} 24. bxa4 {[%clk 0:01:14]}  Rxc1 {[%clk 0:00:47]} 25. Rxc1 {[%clk 0:01:15]}  Rxa4 {[%clk 0:00:47]} 26. a3 {[%clk 0:01:14]}  Rc4 {[%clk 0:00:39]} 27. Rd1 {[%clk 0:01:14]}  Bc6 {[%clk 0:00:38]} 28. h4 {[%clk 0:01:08]}  Rc2 {[%clk 0:00:17]} 29. Bg5 {[%clk 0:01:05]}  Ra2 {[%clk 0:00:17]} 30. Rd8+ {[%clk 0:00:41]}  Kf7 {[%clk 0:00:17]} 31. Rc8 {[%clk 0:00:41]}  Rxa3 {[%clk 0:00:11]} 32. Rc7+ {[%clk 0:00:42]}  Ke6 {[%clk 0:00:11]} 33. Rxh7 {[%clk 0:00:41]}  b5 {[%clk 0:00:11]} 34. Rg7 {[%clk 0:00:36]}  Ra1+ {[%clk 0:00:02]} 35. Kh2 {[%clk 0:00:35]}  b4 {[%clk 0:00:03]} 36. Rxg6+ {[%clk 0:00:34]}  Kd5 {[%clk 0:00:04]} 37. Rg8 {[%clk 0:00:25]}  b3 {[%clk 0:00:04]} 38. Rb8 {[%clk 0:00:25]}  Rb1 {[%clk 0:00:04]} 39. h5 {[%clk 0:00:24]}  Ke5 {[%clk 0:00:03]} 40. h6 {[%clk 0:00:24]}  Bd5 {[%clk 0:00:01]} 41. h7 {[%clk 0:00:24]} 1-0


[Site "https://www.chess.com"]

[Event "Titled Tuesday Blitz March 07 Early 2023"]
[White "Kozak, Antoni"]
[Black "Aarav Dengla"]
[WhiteFideId "21832030"]
[BlackFideId "45059756"]
[WhiteElo "2470"]
[BlackElo "2285"]
[Result "1-0"]
[Round "11"]
[TimeControl "180+2"]
[Date "2023.03.07"]
[WhiteClock "0:00:16"]
[BlackClock "0:00:06"]

1. c4 {[%clk 0:03:00]}  e6 {[%clk 0:02:58]} 2. g3 {[%clk 0:03:00]}  d5 {[%clk 0:02:53]} 3. Bg2 {[%clk 0:03:00]}  Nf6 {[%clk 0:02:52]} 4. Nf3 {[%clk 0:02:57]}  b6 {[%clk 0:02:50]} 5. O-O {[%clk 0:02:56]}  Bb7 {[%clk 0:02:45]} 6. cxd5 {[%clk 0:02:50]}  exd5 {[%clk 0:02:43]} 7. d4 {[%clk 0:02:49]}  Bd6 {[%clk 0:02:42]} 8. Nc3 {[%clk 0:02:49]}  O-O {[%clk 0:02:40]} 9. Nb5 {[%clk 0:02:48]}  Be7 {[%clk 0:02:38]} 10. Bf4 {[%clk 0:02:48]}  Na6 {[%clk 0:02:38]} 11. Rc1 {[%clk 0:02:45]}  c6 {[%clk 0:02:37]} 12. Nc3 {[%clk 0:02:42]}  Nc7 {[%clk 0:02:37]} 13. Ne5 {[%clk 0:02:18]}  Ne6 {[%clk 0:02:19]} 14. Bh3 {[%clk 0:01:59]}  c5 {[%clk 0:01:37]} 15. dxc5 {[%clk 0:01:36]}  bxc5 {[%clk 0:01:38]} 16. Bg2 {[%clk 0:01:34]}  Nxf4 {[%clk 0:01:10]} 17. gxf4 {[%clk 0:01:33]}  Qb6 {[%clk 0:00:50]} 18. Na4 {[%clk 0:01:30]}  Qa5 {[%clk 0:00:31]} 19. e3 {[%clk 0:01:27]}  Rfd8 {[%clk 0:00:25]} 20. b3 {[%clk 0:01:13]}  Rac8 {[%clk 0:00:17]} 21. Qc2 {[%clk 0:01:02]}  c4 {[%clk 0:00:14]} 22. bxc4 {[%clk 0:00:55]}  Ba6 {[%clk 0:00:14]} 23. c5 {[%clk 0:00:30]}  Bxf1 {[%clk 0:00:12]} 24. Kxf1 {[%clk 0:00:28]}  Rc7 {[%clk 0:00:12]} 25. Bf3 {[%clk 0:00:24]}  Rdc8 {[%clk 0:00:09]} 26. Kg2 {[%clk 0:00:24]}  Bxc5 {[%clk 0:00:07]} 27. Qb3 {[%clk 0:00:14]}  Bd6 {[%clk 0:00:05]} 28. Rd1 {[%clk 0:00:13]}  Rc4 {[%clk 0:00:02]} 29. Nxc4 {[%clk 0:00:11]}  dxc4 {[%clk 0:00:03]} 30. Qc2 {[%clk 0:00:11]}  Bf8 {[%clk 0:00:03]} 31. Nc3 {[%clk 0:00:11]}  Bb4 {[%clk 0:00:02]} 32. Ne2 {[%clk 0:00:11]}  c3 {[%clk 0:00:02]} 33. Nd4 {[%clk 0:00:11]}  Bf8 {[%clk 0:00:02]} 34. Rd3 {[%clk 0:00:10]}  Qa3 {[%clk 0:00:02]} 35. Nb5 {[%clk 0:00:09]}  Qb2 {[%clk 0:00:02]} 36. Bd1 {[%clk 0:00:07]}  Rb8 {[%clk 0:00:01]} 37. Nxc3 {[%clk 0:00:06]}  Qxc2 {[%clk 0:00:02]} 38. Bxc2 {[%clk 0:00:06]}  Rc8 {[%clk 0:00:03]} 39. Bb3 {[%clk 0:00:06]}  Rc7 {[%clk 0:00:04]} 40. Ne2 {[%clk 0:00:06]}  Rb7 {[%clk 0:00:05]} 41. Ng3 {[%clk 0:00:07]}  Rd7 {[%clk 0:00:06]} 42. Rc3 {[%clk 0:00:07]}  Nd5 {[%clk 0:00:05]} 43. Rc8 {[%clk 0:00:06]}  Nb6 {[%clk 0:00:04]} 44. Rb8 {[%clk 0:00:05]}  g6 {[%clk 0:00:05]} 45. Ne4 {[%clk 0:00:04]}  Kg7 {[%clk 0:00:05]} 46. Ng5 {[%clk 0:00:04]}  Bd6 {[%clk 0:00:04]} 47. Re8 {[%clk 0:00:04]}  h6 {[%clk 0:00:04]} 48. Ne4 {[%clk 0:00:03]}  Bb4 {[%clk 0:00:03]} 49. Ng3 {[%clk 0:00:03]}  h5 {[%clk 0:00:03]} 50. Re4 {[%clk 0:00:04]}  h4 {[%clk 0:00:03]} 51. Rxb4 {[%clk 0:00:04]}  hxg3 {[%clk 0:00:03]} 52. hxg3 {[%clk 0:00:05]}  Rd2 {[%clk 0:00:04]} 53. Re4 {[%clk 0:00:05]}  a5 {[%clk 0:00:04]} 54. Re7 {[%clk 0:00:06]}  Nd5 {[%clk 0:00:04]} 55. Bxd5 {[%clk 0:00:04]}  Rxd5 {[%clk 0:00:05]} 56. Re5 {[%clk 0:00:05]}  Rd2 {[%clk 0:00:04]} 57. Rxa5 {[%clk 0:00:05]}  f5 {[%clk 0:00:05]} 58. Ra8 {[%clk 0:00:05]}  Kf6 {[%clk 0:00:05]} 59. Kf3 {[%clk 0:00:06]}  Rc2 {[%clk 0:00:06]} 60. Ra6+ {[%clk 0:00:06]}  Kf7 {[%clk 0:00:05]} 61. Ra3 {[%clk 0:00:07]}  Rb2 {[%clk 0:00:06]} 62. Ra7+ {[%clk 0:00:08]}  Kf6 {[%clk 0:00:05]} 63. a4 {[%clk 0:00:08]}  Ra2 {[%clk 0:00:05]} 64. Ra8 {[%clk 0:00:09]}  Rb2 {[%clk 0:00:04]} 65. Ra6+ {[%clk 0:00:10]}  Kf7 {[%clk 0:00:04]} 66. Ra7+ {[%clk 0:00:10]}  Kf6 {[%clk 0:00:04]} 67. a5 {[%clk 0:00:10]}  Ra2 {[%clk 0:00:04]} 68. Ra6+ {[%clk 0:00:11]}  Kf7 {[%clk 0:00:03]} 69. Ra8 {[%clk 0:00:11]}  Kf6 {[%clk 0:00:04]} 70. a6 {[%clk 0:00:12]}  Rb2 {[%clk 0:00:04]} 71. Rc8 {[%clk 0:00:11]}  Ra2 {[%clk 0:00:03]} 72. Rc6+ {[%clk 0:00:11]}  Kf7 {[%clk 0:00:04]} 73. Rc7+ {[%clk 0:00:12]}  Kf6 {[%clk 0:00:04]} 74. Ra7 {[%clk 0:00:11]}  Ke6 {[%clk 0:00:02]} 75. Ra8 {[%clk 0:00:12]}  Kf6 {[%clk 0:00:02]} 76. Kg2 {[%clk 0:00:12]}  Kf7 {[%clk 0:00:02]} 77. Kh3 {[%clk 0:00:12]}  Ra1 {[%clk 0:00:03]} 78. a7 {[%clk 0:00:11]}  Ra2 {[%clk 0:00:02]} 79. Rh8 {[%clk 0:00:10]}  Ra6 {[%clk 0:00:01]} 80. Rh7+ {[%clk 0:00:10]}  Kg8 {[%clk 0:00:01]} 81. Rb7 {[%clk 0:00:11]}  Kf8 {[%clk 0:00:02]} 82. Rb8+ {[%clk 0:00:11]}  Kf7 {[%clk 0:00:02]} 83. a8=Q {[%clk 0:00:12]}  Rxa8 {[%clk 0:00:03]} 84. Rxa8 {[%clk 0:00:13]}  g5 {[%clk 0:00:04]} 85. fxg5 {[%clk 0:00:12]}  Kg6 {[%clk 0:00:05]} 86. f4 {[%clk 0:00:13]}  Kh5 {[%clk 0:00:06]} 87. Kg2 {[%clk 0:00:14]}  Kg4 {[%clk 0:00:06]} 88. g6 {[%clk 0:00:14]}  Kh5 {[%clk 0:00:06]} 89. g7 {[%clk 0:00:14]}  Kh6 {[%clk 0:00:06]} 90. g8=Q {[%clk 0:00:14]}  Kh5 {[%clk 0:00:07]} 91. g4+ {[%clk 0:00:15]}  fxg4 {[%clk 0:00:06]} 92. Ra7 {[%clk 0:00:16]} 1-0


[Site "https://www.chess.com"]

[Event "Titled Tuesday Blitz March 07 Early 2023"]
[White "Prokofiev, Valentyn"]
[Black "Ansh M Shah"]
[WhiteFideId "14160161"]
[BlackFideId "25033379"]
[WhiteElo "2260"]
[BlackElo "2084"]
[Result "0-1"]
[Round "11"]
[TimeControl "180+2"]
[Date "2023.03.07"]
[WhiteClock "0:00:02"]
[BlackClock "0:00:11"]

1. e4 {[%clk 0:03:00]}  c6 {[%clk 0:03:00]} 2. d4 {[%clk 0:03:00]}  d5 {[%clk 0:03:01]} 3. Nc3 {[%clk 0:03:00]}  dxe4 {[%clk 0:03:01]} 4. Nxe4 {[%clk 0:02:59]}  Bf5 {[%clk 0:03:02]} 5. Ng3 {[%clk 0:02:57]}  Bg6 {[%clk 0:03:02]} 6. Nh3 {[%clk 0:02:51]}  Nf6 {[%clk 0:03:00]} 7. Nf4 {[%clk 0:02:48]}  e5 {[%clk 0:02:58]} 8. dxe5 {[%clk 0:02:45]}  Qa5+ {[%clk 0:02:57]} 9. c3 {[%clk 0:02:43]}  Qxe5+ {[%clk 0:02:57]} 10. Be2 {[%clk 0:02:42]}  Nbd7 {[%clk 0:02:54]} 11. O-O {[%clk 0:02:39]}  Bc5 {[%clk 0:02:54]} 12. Bf3 {[%clk 0:01:45]}  O-O {[%clk 0:02:48]} 13. Nxg6 {[%clk 0:01:35]}  hxg6 {[%clk 0:02:49]} 14. Re1 {[%clk 0:01:33]}  Qc7 {[%clk 0:02:49]} 15. Qa4 {[%clk 0:01:17]}  Qb6 {[%clk 0:02:34]} 16. Qc2 {[%clk 0:01:16]}  Rfe8 {[%clk 0:02:27]} 17. Bf4 {[%clk 0:01:14]}  a5 {[%clk 0:02:17]} 18. Rad1 {[%clk 0:01:09]}  Nf8 {[%clk 0:02:08]} 19. Be5 {[%clk 0:01:03]}  Re6 {[%clk 0:01:56]} 20. Bxf6 {[%clk 0:00:54]}  gxf6 {[%clk 0:01:50]} 21. Rxe6 {[%clk 0:00:52]}  Nxe6 {[%clk 0:01:51]} 22. Ne4 {[%clk 0:00:51]}  f5 {[%clk 0:01:47]} 23. Nf6+ {[%clk 0:00:46]}  Kg7 {[%clk 0:01:44]} 24. Nd7 {[%clk 0:00:47]}  Qc7 {[%clk 0:01:40]} 25. Nxc5 {[%clk 0:00:39]}  Nxc5 {[%clk 0:01:41]} 26. b4 {[%clk 0:00:39]}  Ne6 {[%clk 0:01:39]} 27. g3 {[%clk 0:00:36]}  Rd8 {[%clk 0:01:33]} 28. Rb1 {[%clk 0:00:28]}  axb4 {[%clk 0:01:18]} 29. Rxb4 {[%clk 0:00:24]}  Rd7 {[%clk 0:01:12]} 30. Qb1 {[%clk 0:00:21]}  b5 {[%clk 0:01:06]} 31. h4 {[%clk 0:00:17]}  Rd2 {[%clk 0:00:38]} 32. h5 {[%clk 0:00:14]}  Ng5 {[%clk 0:00:30]} 33. Bg2 {[%clk 0:00:14]}  Qe5 {[%clk 0:00:20]} 34. hxg6 {[%clk 0:00:10]}  fxg6 {[%clk 0:00:19]} 35. Qc1 {[%clk 0:00:08]}  Qe2 {[%clk 0:00:18]} 36. Kh2 {[%clk 0:00:05]}  Qxf2 {[%clk 0:00:17]} 37. Qh1 {[%clk 0:00:04]}  Ne4 {[%clk 0:00:09]} 38. Rxe4 {[%clk 0:00:01]}  fxe4 {[%clk 0:00:10]} 39. Kh3 {[%clk 0:00:02]}  Qf5+ {[%clk 0:00:09]} 40. Kh2 {[%clk 0:00:02]}  Qh5+ {[%clk 0:00:10]} 41. Kg1 {[%clk 0:00:02]}  Rd1+ {[%clk 0:00:10]} 42. Bf1 {[%clk 0:00:02]}  Rxf1+ {[%clk 0:00:10]} 43. Kg2 {[%clk 0:00:02]}  Qxh1# {[%clk 0:00:11]} 0-1


[Site "https://www.chess.com"]

[Event "Titled Tuesday Blitz March 07 Early 2023"]
[White "Gabdrakhmanov, Azat"]
[Black "Afanasieva, Alexandra"]
[WhiteFideId "34189197"]
[BlackFideId "34126926"]
[WhiteElo "2266"]
[BlackElo "1763"]
[Result "1-0"]
[Round "11"]
[TimeControl "180+2"]
[Date "2023.03.07"]
[WhiteClock "0:00:07"]
[BlackClock "0:00:07"]

1. e4 {[%clk 0:03:00]}  c5 {[%clk 0:03:00]} 2. Nf3 {[%clk 0:03:00]}  e6 {[%clk 0:03:00]} 3. d4 {[%clk 0:03:00]}  cxd4 {[%clk 0:03:01]} 4. Nxd4 {[%clk 0:03:01]}  Nf6 {[%clk 0:03:02]} 5. Nc3 {[%clk 0:03:01]}  Nc6 {[%clk 0:03:03]} 6. Ndb5 {[%clk 0:03:01]}  Bc5 {[%clk 0:03:03]} 7. Nd6+ {[%clk 0:02:57]}  Ke7 {[%clk 0:03:03]} 8. Bf4 {[%clk 0:02:58]}  e5 {[%clk 0:03:04]} 9. Nf5+ {[%clk 0:02:58]}  Kf8 {[%clk 0:03:05]} 10. Bg5 {[%clk 0:02:58]}  d6 {[%clk 0:03:05]} 11. Bc4 {[%clk 0:02:54]}  Be6 {[%clk 0:02:53]} 12. Bxe6 {[%clk 0:02:39]}  fxe6 {[%clk 0:02:54]} 13. Ne3 {[%clk 0:02:40]}  h6 {[%clk 0:02:49]} 14. Bh4 {[%clk 0:02:28]}  Qb6 {[%clk 0:02:40]} 15. Nc4 {[%clk 0:02:17]}  Qb4 {[%clk 0:02:35]} 16. Qd3 {[%clk 0:02:14]}  b5 {[%clk 0:02:28]} 17. Nd2 {[%clk 0:02:09]}  Nd4 {[%clk 0:02:22]} 18. O-O-O {[%clk 0:01:39]}  Rc8 {[%clk 0:02:04]} 19. Bxf6 {[%clk 0:01:33]}  gxf6 {[%clk 0:02:04]} 20. a3 {[%clk 0:01:29]}  Qa5 {[%clk 0:02:00]} 21. Nb3 {[%clk 0:01:28]}  Nxb3+ {[%clk 0:01:56]} 22. cxb3 {[%clk 0:01:27]}  Bxa3 {[%clk 0:01:47]} 23. Kb1 {[%clk 0:01:26]}  Bc5 {[%clk 0:01:16]} 24. Nxb5 {[%clk 0:01:08]}  Rc6 {[%clk 0:00:56]} 25. Rc1 {[%clk 0:00:46]}  Kf7 {[%clk 0:00:47]} 26. Rxc5 {[%clk 0:00:33]}  Rxc5 {[%clk 0:00:37]} 27. Nxd6+ {[%clk 0:00:33]}  Ke7 {[%clk 0:00:23]} 28. Nb7 {[%clk 0:00:22]}  Qc7 {[%clk 0:00:18]} 29. Nxc5 {[%clk 0:00:17]}  Qxc5 {[%clk 0:00:19]} 30. Rd1 {[%clk 0:00:16]}  Rc8 {[%clk 0:00:09]} 31. Qd7+ {[%clk 0:00:15]}  Kf8 {[%clk 0:00:10]} 32. Qd3 {[%clk 0:00:11]}  Ke7 {[%clk 0:00:09]} 33. Qd2 {[%clk 0:00:11]}  Qd4 {[%clk 0:00:04]} 34. Qxd4 {[%clk 0:00:10]}  exd4 {[%clk 0:00:05]} 35. Rxd4 {[%clk 0:00:11]}  Rb8 {[%clk 0:00:06]} 36. Kc2 {[%clk 0:00:10]}  Rg8 {[%clk 0:00:06]} 37. g3 {[%clk 0:00:10]}  h5 {[%clk 0:00:04]} 38. Ra4 {[%clk 0:00:10]}  h4 {[%clk 0:00:01]} 39. Rxa7+ {[%clk 0:00:09]}  Kd6 {[%clk 0:00:02]} 40. Ra5 {[%clk 0:00:09]}  hxg3 {[%clk 0:00:02]} 41. hxg3 {[%clk 0:00:10]}  Rh8 {[%clk 0:00:02]} 42. Kd3 {[%clk 0:00:10]}  Rh1 {[%clk 0:00:03]} 43. Ra6+ {[%clk 0:00:09]}  Ke7 {[%clk 0:00:03]} 44. Ke3 {[%clk 0:00:09]}  Re1+ {[%clk 0:00:03]} 45. Kf3 {[%clk 0:00:09]}  Rb1 {[%clk 0:00:02]} 46. Ra2 {[%clk 0:00:08]}  Rd1 {[%clk 0:00:02]} 47. Ke3 {[%clk 0:00:08]}  Re1+ {[%clk 0:00:02]} 48. Kd2 {[%clk 0:00:09]}  Rf1 {[%clk 0:00:03]} 49. Ke2 {[%clk 0:00:09]}  Rc1 {[%clk 0:00:03]} 50. b4 {[%clk 0:00:09]}  Rc4 {[%clk 0:00:04]} 51. b3 {[%clk 0:00:09]}  Rxe4+ {[%clk 0:00:04]} 52. Kd3 {[%clk 0:00:10]}  Rxb4 {[%clk 0:00:05]} 53. Kc3 {[%clk 0:00:10]}  Rb7 {[%clk 0:00:03]} 54. Rd2 {[%clk 0:00:09]}  e5 {[%clk 0:00:04]} 55. b4 {[%clk 0:00:09]}  Rc7+ {[%clk 0:00:04]} 56. Kb3 {[%clk 0:00:09]}  Rc1 {[%clk 0:00:05]} 57. b5 {[%clk 0:00:09]}  f5 {[%clk 0:00:05]} 58. b6 {[%clk 0:00:09]}  Rb1+ {[%clk 0:00:05]} 59. Rb2 {[%clk 0:00:08]}  Rd1 {[%clk 0:00:05]} 60. b7 {[%clk 0:00:07]}  Rd8 {[%clk 0:00:06]} 61. Kc4 {[%clk 0:00:07]}  Rb8 {[%clk 0:00:07]} 62. Kd5 {[%clk 0:00:07]}  e4 {[%clk 0:00:07]} 63. Kc6 {[%clk 0:00:07]} 1-0


[Site "https://www.chess.com"]